fUSD/lending_fUSD_20240502
["ID","MTS","AMOUNT","RATE_DAILY","PERIOD"]
[325299077,1714685462659,-500.0,0.0003041,2]
[325299078,1714685462669,-500.0,0.0003041,2]
[325299079,1714685462678,-14670.51,0.0003041,2]
[325299080,1714685462688,-500.0,0.0003041,2]
[325299081,1714685462697,-500.0,0.0003041,2]
[325299082,1714685462706,-500.0,0.0003041,2]
[325299083,1714685462716,-998.32,0.0003041,2]
[325299084,1714685462727,-7232.65,0.0003041,2]
[325299085,1714685462737,-1268.67,0.0003041,2]
[325299086,1714685462746,-895.77,0.0003041,2]
[325299087,1714685462756,-3777.5,0.0003041,2]
[325299088,1714685462766,-500.0,0.0003041,2]
[325299089,1714685462775,-5094.08,0.0003041,2]
[325299090,1714685462785,-500.0,0.0003041,2]
[325299091,1714685462794,-500.0,0.0003041,2]
[325299092,1714685462804,-4992.6,0.0003041,2]
[325299093,1714685462814,-2672.24,0.0003041,2]
[325299094,1714685462824,-500.0,0.0003041,2]
[325299095,1714685462834,-500.0,0.0003041,2]
[325299096,1714685462843,-500.0,0.0003041,2]
[325299097,1714685462853,-627.14,0.0003041,2]
[325299098,1714685462863,-500.0,0.0003041,2]
[325299099,1714685462875,-1749.97,0.0003041,2]
[325299100,1714685462885,-1529.25,0.0003041,2]
[325299101,1714685462894,-500.0,0.0003041,2]
[325299102,1714685462904,-2922.55,0.0003041,2]
[325299103,1714685462914,-566.12,0.0003041,2]
[325299104,1714685462923,-10885.83,0.0003041,2]
[325299105,1714685462933,-500.0,0.0003041,2]
[325299106,1714685462943,-11409.05,0.0003041,2]
[325299107,1714685462953,-500.0,0.0003041,2]
[325299108,1714685462963,-500.0,0.0003041,2]
[325299109,1714685462972,-5162.49,0.0003041,2]
[325299110,1714685462982,-1004.34,0.0003041,2]
[325299111,1714685462992,-2492.19,0.0003041,2]
[325299112,1714685463002,-1659.44,0.0003041,2]
[325299113,1714685463011,-1411.6,0.0003041,2]
[325299114,1714685463020,-4724.67,0.0003041,2]
[325299115,1714685463029,-6576.69,0.0003041,2]
[325299116,1714685463038,-500.0,0.0003041,2]
[325299117,1714685463047,-2282.3,0.0003041,2]
[325299118,1714685463056,-350.70915254,0.0003041,2]
[325299119,1714685463065,-500.0,0.0003041,2]
[325299120,1714685463075,-500.0,0.0003041,2]
[325299121,1714685463084,-20525.17,0.0003041,2]
[325299122,1714685463093,-500.0,0.0003041,2]
[325299123,1714685463103,-500.0,0.0003041,2]
[325299124,1714685463112,-2417.71,0.0003041,2]
[325299125,1714685463121,-1645.32,0.0003041,2]
[325299126,1714685463131,-1468.37,0.0003041,2]
[325299127,1714685463140,-768.09,0.0003041,2]
[325299128,1714685463150,-1092.85,0.0003041,2]
[325299129,1714685463160,-1930.84,0.0003041,2]
[325299130,1714685463169,-3517.95,0.0003041,2]
[325299131,1714685463179,-500.0,0.0003041,2]
[325299132,1714685463188,-747.2,0.0003041,2]
[325299133,1714685463198,-469.35253154,0.0003041,2]
[325299134,1714685463207,-3677.32,0.0003041,2]
[325299135,1714685463216,-4034.86,0.0003041,2]
[325299136,1714685463226,-500.0,0.0003041,2]
[325299137,1714685463236,-2105.07,0.0003041,2]
[325299138,1714685463246,-939.56,0.0003041,2]
[325299139,1714685463255,-500.0,0.0003041,2]
[325299140,1714685463265,-1933.71,0.0003041,2]
[325299141,1714685463275,-605.38,0.0003041,2]
[325299142,1714685463284,-2829.77,0.0003041,2]
[325299143,1714685463293,-696.53,0.0003041,2]
[325299144,1714685463303,-536.22,0.0003041,2]
[325299145,1714685463312,-4544.03,0.0003041,2]
[325299146,1714685463321,-683.22,0.0003041,2]
[325299147,1714685463330,-2005.19,0.0003041,2]
[325299148,1714685463340,-2815.16,0.0003041,2]
[325299149,1714685463349,-673.76,0.0003041,2]
[325299150,1714685463358,-500.0,0.0003041,2]
[325299151,1714685463368,-500.0,0.0003041,2]
[325299152,1714685463377,-610.1,0.0003041,2]
[325299153,1714685463387,-500.0,0.0003041,2]
[325299154,1714685463397,-500.0,0.0003041,2]
[325299155,1714685463410,-500.0,0.0003041,2]
[325299156,1714685463420,-1141.0,0.0003041,2]
[325299157,1714685463431,-2413.52,0.0003041,2]
[325299158,1714685463441,-1447.73,0.0003041,2]
[325299159,1714685463450,-1835.74,0.0003041,2]
[325299160,1714685463460,-1061.78404097,0.0003041,2]
[325299161,1714685464047,-595.96595903,0.0003041,2]
[325299162,1714685464057,-500.0,0.0003041,2]
[325299163,1714685464067,-403.78370037,0.0003041,2]
[325299164,1714685464080,-263.42629963,0.0003041,2]
[325299165,1714685464089,-966.45,0.0003041,2]
[325299166,1714685464098,-2015.92671851,0.0003041,2]
[325299167,1714685464110,-638.01328149,0.0003041,2]
[325299168,1714685464120,-500.0,0.0003041,2]
[325299169,1714685464130,-545.83,0.0003041,2]
[325299170,1714685464139,-2211.29671851,0.0003041,2]
[325299171,1714685464150,-973.84728417,0.0003041,2]
[325299172,1714685464161,-915.94314115,0.0003041,2]
[325299173,1714685464885,-500.0,0.00030136,2]
[325299174,1714685464896,-1003.22,0.00030136,2]
[325299175,1714685464907,-500.0,0.00030136,2]
[325299176,1714685464916,-500.0,0.00030136,2]
[325299177,1714685464926,-500.0,0.00030136,2]
[325299178,1714685464936,-2977.06285617,0.0003041,2]
[325299179,1714685464948,-1179.79,0.0003041,2]
[325299180,1714685464959,-660.91,0.0003041,2]
[325299181,1714685464968,-502.14,0.0003041,2]
[325299182,1714685464977,-3800.4,0.0003041,2]
[325299183,1714685464988,-500.0,0.0003041,2]
[325299184,1714685464997,-1778.16,0.0003041,2]
[325299185,1714685465007,-500.0,0.0003041,2]
[325299186,1714685465016,-1290.39,0.0003041,2]
[325299187,1714685465026,-1024.48,0.0003041,2]
[325299188,1714685465035,-4889.17,0.0003041,2]
[325299189,1714685465044,-2579.09,0.0003041,2]
[325299190,1714685465054,-500.0,0.0003041,2]
[325299191,1714685465063,-500.0,0.0003041,2]
[325299192,1714685465072,-500.0,0.0003041,2]
[325299193,1714685465082,-500.0,0.0003041,2]
[325299194,1714685465091,-2455.06,0.0003041,2]
[325299195,1714685465101,-1287.45,0.0003041,2]
[325299196,1714685465110,-437.27388555,0.0003041,2]
[325299197,1714685465120,-12404.8,0.0003041,2]
[325299198,1714685465130,-1150.72,0.0003041,2]
[325299199,1714685465139,-2284.13,0.0003041,2]
[325299200,1714685465149,-500.0,0.0003041,2]
[325299201,1714685465158,-500.0,0.0003041,2]
[325299202,1714685465168,-500.0,0.0003041,2]
[325299203,1714685465178,-1003.22,0.0003041,2]
[325299204,1714685465187,-485.96210192,0.0003041,2]
[325299205,1714685465197,-410.112561,0.00030411,14]
[325299206,1714685465207,-153.07877802,0.00030468,2]
[325299207,1714685465216,-195.56794967,0.00030468,2]
[325299208,1714685465237,-147.46375925,0.00030468,2]
[325299209,1714685465246,-157.050306,0.00030498,10]
[325299210,1714685465256,-157.050306,0.00030498,12]
[325299211,1714685465266,-167.0,0.0003051,2]
[325299212,1714685465275,-154.87041203,0.00030522,7]
[325299213,1714685465286,-1023.80895064,0.00030535,2]
[325299214,1714685465295,-476.0,0.00030598,5]
[325299215,1714685465305,-157.050306,0.00030598,10]
[325299216,1714685465315,-157.050306,0.00030598,6]
[325299217,1714685465325,-2000.0,0.000306,2]
[325299218,1714685465335,-1011.2,0.000306,2]
[325299219,1714685465344,-309.2,0.000306,2]
[325299220,1714685465354,-191.3337247,0.00030605,2]
[325299221,1714685465363,-2000.0,0.0003061,2]
[325299222,1714685465373,-2800.0,0.00030618,10]
[325299223,1714685465382,-326.1149545,0.00030618,10]
[325299224,1714685467399,-953.06938881,0.00014,2]
[325299225,1714685467409,-155.0,0.00017807,2]
[325299226,1714685467418,-1645.36917912,0.00030135,4]
[325299227,1714685467428,-500.0,0.00030136,2]
[325299228,1714685467438,-500.0,0.00030136,2]
[325299229,1714685467447,-500.0,0.00030136,2]
[325299230,1714685467457,-500.0,0.00030136,2]
[325299231,1714685467470,-17008.94,0.00030136,2]
[325299232,1714685467480,-500.0,0.00030136,2]
[325299233,1714685467490,-500.0,0.0003041,2]
[325299234,1714685467499,-500.0,0.0003041,2]
[325299235,1714685467513,-500.0,0.0003041,2]
[325299236,1714685467523,-17008.94,0.0003041,2]
[325299237,1714685467533,-273.8850455,0.00030618,10]
[325299238,1714685467547,-2000.0,0.0003062,2]
[325299239,1714685467556,-2000.0,0.0003063,2]
[325299240,1714685467566,-2000.0,0.0003064,2]
[325299241,1714685467576,-3539.504331,0.0003065,2]
[325299242,1714685467585,-200.0,0.00030658,7]
[325299243,1714685467596,-154.75697142,0.00030682,7]
[325299244,1714685467605,-4241.49,0.00030683,4]
[325299245,1714685467615,-4241.49,0.00030683,4]
[325299246,1714685467625,-4241.49,0.00030683,4]
[325299247,1714685467635,-4241.49,0.00030683,4]
[325299248,1714685467644,-4241.49,0.00030683,4]
[325299249,1714685467654,-4241.49,0.00030683,4]
[325299250,1714685467663,-4241.49,0.00030683,4]
[325299251,1714685467672,-4241.50514962,0.00030683,4]
[325299252,1714685467682,-500.0,0.00030684,2]
[325299253,1714685467691,-500.0,0.00030684,2]
[325299254,1714685467701,-500.0,0.00030684,2]
[325299255,1714685467710,-500.0,0.00030684,2]
[325299256,1714685467719,-500.0,0.00030684,2]
[325299257,1714685467729,-500.0,0.00030684,2]
[325299258,1714685467739,-500.0,0.00030684,2]
[325299259,1714685467749,-522.88,0.00030684,2]
[325299260,1714685467758,-500.0,0.00030684,2]
[325299261,1714685467767,-500.0,0.00030684,2]
[325299262,1714685467776,-686.6,0.00030684,2]
[325299263,1714685467785,-500.0,0.00030684,2]
[325299264,1714685467794,-713.47,0.00030684,2]
[325299265,1714685467803,-500.0,0.00030684,2]
[325299266,1714685467813,-899.0,0.00030684,2]
[325299267,1714685467822,-500.0,0.00030684,2]
[325299268,1714685467831,-500.0,0.00030684,2]
[325299269,1714685467840,-500.0,0.00030684,2]
[325299270,1714685467849,-500.0,0.00030684,2]
[325299271,1714685467858,-500.0,0.00030684,2]
[325299272,1714685467867,-500.0,0.00030684,2]
[325299273,1714685467877,-676.78,0.00030684,2]
[325299274,1714685467886,-922.41,0.00030684,2]
[325299275,1714685467895,-500.0,0.00030684,2]
[325299276,1714685467904,-500.0,0.00030684,2]
[325299277,1714685467913,-803.16,0.00030684,2]
[325299278,1714685467922,-500.0,0.00030684,2]
[325299279,1714685467931,-817.92,0.00030684,2]
[325299280,1714685467940,-500.0,0.00030684,2]
[325299281,1714685467949,-943.24,0.00030684,2]
[325299282,1714685467958,-674.51,0.00030684,2]
[325299283,1714685467967,-500.0,0.00030684,2]
[325299284,1714685467976,-500.0,0.00030684,2]
[325299285,1714685467986,-925.27,0.00030684,2]
[325299286,1714685467995,-550.59,0.00030684,2]
[325299287,1714685468004,-500.0,0.00030684,2]
[325299288,1714685468014,-500.0,0.00030684,2]
[325299289,1714685468024,-796.79,0.00030684,2]
[325299290,1714685468034,-640.99,0.00030684,2]
[325299291,1714685468043,-1182.99,0.00030684,2]
[325299292,1714685468052,-500.0,0.00030684,2]
[325299293,1714685468062,-500.0,0.00030684,2]
[325299294,1714685468071,-598.08,0.00030684,2]
[325299295,1714685468080,-500.0,0.00030684,2]
[325299296,1714685468089,-500.0,0.00030684,2]
[325299297,1714685468098,-500.0,0.00030684,2]
[325299298,1714685468107,-807.29,0.00030684,2]
[325299299,1714685468116,-500.0,0.00030684,2]
[325299300,1714685468126,-500.0,0.00030684,2]
[325299301,1714685468135,-500.0,0.00030684,2]
[325299302,1714685468144,-500.0,0.00030684,2]
[325299303,1714685468153,-526.16,0.00030684,2]
[325299304,1714685468163,-1035.64,0.00030684,2]
[325299305,1714685468172,-835.5,0.00030684,2]
[325299306,1714685468181,-500.0,0.00030684,2]
[325299307,1714685468189,-500.0,0.00030684,2]
[325299308,1714685468199,-768.74,0.00030684,2]
[325299309,1714685468208,-500.0,0.00030684,2]
[325299310,1714685468218,-500.0,0.00030684,2]
[325299311,1714685468227,-500.0,0.00030684,2]
[325299312,1714685468236,-500.0,0.00030684,2]
[325299313,1714685468245,-500.0,0.00030684,2]
[325299314,1714685468255,-500.0,0.00030684,2]
[325299315,1714685468264,-1103.01,0.00030684,2]
[325299316,1714685468274,-819.12,0.00030684,2]
[325299317,1714685468283,-738.18,0.00030684,2]
[325299318,1714685468292,-803.32,0.00030684,2]
[325299319,1714685468302,-616.49,0.00030684,2]
[325299320,1714685468311,-407.79462739,0.00030684,2]
[325299321,1714685468320,-915.25,0.00030684,2]
[325299322,1714685468330,-500.0,0.00030684,2]
[325299323,1714685468339,-500.0,0.00030684,2]
[325299324,1714685468349,-500.0,0.00030684,2]
[325299325,1714685468358,-500.0,0.00030684,2]
[325299326,1714685468367,-592.84,0.00030684,2]
[325299327,1714685468376,-500.0,0.00030684,2]
[325299328,1714685468386,-1154.13,0.00030684,2]
[325299329,1714685468395,-500.0,0.00030684,2]
[325299330,1714685468404,-892.32,0.00030684,2]
[325299331,1714685468413,-778.37,0.00030684,2]
[325299332,1714685468423,-500.0,0.00030684,2]
[325299333,1714685468432,-283.79202285,0.00030684,2]
[325299334,1714685468442,-781.2,0.00030684,2]
[325299335,1714685468451,-500.0,0.00030684,2]
[325299336,1714685468462,-500.0,0.00030684,2]
[325299337,1714685468476,-1074.57,0.00030684,2]
[325299338,1714685468486,-500.0,0.00030684,2]
[325299339,1714685468497,-500.0,0.00030684,2]
[325299340,1714685468506,-729.62,0.00030684,2]
[325299341,1714685468516,-500.0,0.00030684,2]
[325299342,1714685468525,-500.0,0.00030684,2]
[325299343,1714685468534,-500.0,0.00030684,2]
[325299344,1714685468545,-1005.04,0.00030684,2]
[325299345,1714685468555,-1063.59,0.00030684,2]
[325299346,1714685468564,-500.0,0.00030684,2]
[325299347,1714685468574,-500.0,0.00030684,2]
[325299348,1714685468583,-500.0,0.00030684,2]
[325299349,1714685468592,-150.0,0.00030684,2]
[325299350,1714685468602,-1227.29,0.00030684,2]
[325299351,1714685468611,-986.58,0.00030684,2]
[325299352,1714685468622,-500.0,0.00030684,2]
[325299353,1714685468632,-500.0,0.00030684,2]
[325299354,1714685468642,-500.0,0.00030684,2]
[325299355,1714685468652,-500.0,0.00030684,2]
[325299356,1714685468669,-500.0,0.00030684,2]
[325299357,1714685468683,-500.0,0.00030684,2]
[325299358,1714685468694,-500.0,0.00030684,2]
[325299359,1714685468704,-500.0,0.00030684,2]
[325299360,1714685468714,-825.31,0.00030684,2]
[325299361,1714685468724,-553.07,0.00030684,2]
[325299362,1714685468735,-1098.45,0.00030684,2]
[325299363,1714685468746,-805.33,0.00030684,2]
[325299364,1714685468756,-500.0,0.00030684,2]
[325299365,1714685468766,-500.0,0.00030684,2]
[325299366,1714685468776,-500.0,0.00030684,2]
[325299367,1714685468786,-500.0,0.00030684,2]
[325299368,1714685468796,-500.0,0.00030684,2]
[325299369,1714685468806,-500.0,0.00030684,2]
[325299370,1714685468816,-808.19,0.00030684,2]
[325299371,1714685468826,-760.73,0.00030684,2]
[325299372,1714685468836,-1138.67,0.00030684,2]
[325299373,1714685468845,-500.0,0.00030684,2]
[325299374,1714685468856,-641.46,0.00030684,2]
[325299375,1714685468866,-644.51,0.00030684,2]
[325299376,1714685468876,-500.0,0.00030684,2]
[325299377,1714685468886,-657.28,0.00030684,2]
[325299378,1714685468896,-500.0,0.00030684,2]
[325299379,1714685468907,-741.22,0.00030684,2]
[325299380,1714685468917,-1578.32,0.00030684,2]
[325299381,1714685468927,-474.03722813,0.00030684,2]
[325299382,1714685468950,-25.96277187,0.00030684,2]
[325299383,1714685468960,-708.65,0.00030684,2]
[325299384,1714685468970,-369.23538913,0.00030684,2]
[325299385,1714685469003,-130.76461087,0.00030684,2]
[325299386,1714685469013,-500.0,0.00030684,2]
[325299387,1714685469023,-451.83526623,0.00030684,2]
[325299388,1714685469035,-48.16473377,0.00030684,2]
[325299389,1714685469045,-665.28,0.00030684,2]
[325299390,1714685469055,-500.0,0.00030684,2]
[325299391,1714685469065,-1051.71,0.00030684,2]
[325299392,1714685469075,-500.0,0.00030684,2]
[325299393,1714685469084,-658.5,0.00030684,2]
[325299394,1714685469094,-820.63,0.00030684,2]
[325299395,1714685469104,-500.0,0.00030684,2]
[325299396,1714685469114,-500.0,0.00030684,2]
[325299397,1714685469124,-828.09,0.00030684,2]
[325299398,1714685469133,-500.0,0.00030684,2]
[325299399,1714685469143,-1324.85,0.00030684,2]
[325299400,1714685469153,-500.0,0.00030684,2]
[325299401,1714685469162,-500.0,0.00030684,2]
[325299402,1714685469172,-500.0,0.00030684,2]
[325299403,1714685469181,-548.21,0.00030684,2]
[325299404,1714685469191,-1278.73,0.00030684,2]
[325299405,1714685469200,-626.61,0.00030684,2]
[325299406,1714685469209,-640.19,0.00030684,2]
[325299407,1714685469219,-500.0,0.00030684,2]
[325299408,1714685469228,-864.65,0.00030684,2]
[325299409,1714685469237,-500.0,0.00030684,2]
[325299410,1714685469247,-828.63,0.00030684,2]
[325299411,1714685469256,-1853.35,0.00030684,2]
[325299412,1714685469265,-500.0,0.00030684,2]
[325299413,1714685469274,-500.0,0.00030684,2]
[325299414,1714685469289,-500.0,0.00030684,2]
[325299415,1714685469300,-500.0,0.00030684,2]
[325299416,1714685469310,-500.0,0.00030684,2]
[325299417,1714685469320,-571.29498011,0.00030684,2]
[325299418,1714685469331,-500.0,0.00030684,2]
[325299419,1714685469341,-500.0,0.00030684,2]
[325299420,1714685469351,-600.85,0.00030684,2]
[325299421,1714685469362,-500.0,0.00030684,2]
[325299422,1714685469372,-596.1,0.00030684,2]
[325299423,1714685469382,-1386.73,0.00030684,2]
[325299424,1714685469393,-500.0,0.00030684,2]
[325299425,1714685469404,-500.0,0.00030684,2]
[325299426,1714685469414,-500.0,0.00030684,2]
[325299427,1714685469425,-500.0,0.00030684,2]
[325299428,1714685469436,-1236.26,0.00030684,2]
[325299429,1714685469446,-500.0,0.00030684,2]
[325299430,1714685469458,-500.0,0.00030684,2]
[325299431,1714685469471,-540.04,0.00030684,2]
[325299432,1714685469481,-1426.03,0.00030684,2]
[325299433,1714685469492,-500.0,0.00030684,2]
[325299434,1714685469503,-500.0,0.00030684,2]
[325299435,1714685469514,-804.61,0.00030684,2]
[325299436,1714685469524,-500.0,0.00030684,2]
[325299437,1714685469534,-500.0,0.00030684,2]
[325299438,1714685469544,-1061.33,0.00030684,2]
[325299439,1714685469555,-500.0,0.00030684,2]
[325299440,1714685469565,-1326.43,0.00030684,2]
[325299441,1714685470029,-500.0,0.00030684,2]
[325299442,1714685470048,-500.0,0.00030684,2]
[325299443,1714685470059,-704.82,0.00030684,2]
[325299444,1714685470070,-1081.88,0.00030684,2]
[325299445,1714685470082,-500.0,0.00030684,2]
[325299446,1714685470092,-720.68,0.00030684,2]
[325299447,1714685470102,-500.0,0.00030684,2]
[325299448,1714685470112,-500.0,0.00030684,2]
[325299449,1714685470122,-500.0,0.00030684,2]
[325299450,1714685470132,-500.0,0.00030684,2]
[325299451,1714685470142,-500.0,0.00030684,2]
[325299452,1714685470152,-719.48,0.00030684,2]
[325299453,1714685470163,-500.0,0.00030684,2]
[325299454,1714685470173,-517.86,0.00030684,2]
[325299455,1714685470187,-1329.96,0.00030684,2]
[325299456,1714685470197,-737.96,0.00030684,2]
[325299457,1714685470207,-500.0,0.00030684,2]
[325299458,1714685470217,-723.83,0.00030684,2]
[325299459,1714685470226,-500.0,0.00030684,2]
[325299460,1714685470238,-1304.65,0.00030684,2]
[325299461,1714685470247,-500.0,0.00030684,2]
[325299462,1714685470257,-500.0,0.00030684,2]
[325299463,1714685470267,-1020.31,0.00030684,2]
[325299464,1714685470276,-500.0,0.00030684,2]
[325299465,1714685470286,-865.93,0.00030684,2]
[325299466,1714685470295,-500.0,0.00030684,2]
[325299467,1714685470304,-873.35,0.00030684,2]
[325299468,1714685470314,-691.41,0.00030684,2]
[325299469,1714685470323,-1378.48,0.00030684,2]
[325299470,1714685470332,-500.0,0.00030684,2]
[325299471,1714685470342,-500.0,0.00030684,2]
[325299472,1714685470352,-1410.61,0.00030684,2]
[325299473,1714685470363,-500.0,0.00030684,2]
[325299474,1714685470373,-500.0,0.00030684,2]
[325299475,1714685470383,-500.0,0.00030684,2]
[325299476,1714685470392,-1005.44,0.00030684,2]
[325299477,1714685470402,-500.0,0.00030684,2]
[325299478,1714685470412,-1442.73,0.00030684,2]
[325299479,1714685470421,-500.0,0.00030684,2]
[325299480,1714685470431,-500.0,0.00030684,2]
[325299481,1714685470441,-500.0,0.00030684,2]
[325299482,1714685470450,-500.0,0.00030684,2]
[325299483,1714685470460,-1137.74,0.00030684,2]
[325299484,1714685470473,-500.0,0.00030684,2]
[325299485,1714685470483,-500.0,0.00030684,2]
[325299486,1714685470494,-1242.21,0.00030684,2]
[325299487,1714685470504,-1895.18,0.00030684,2]
[325299488,1714685470515,-500.0,0.00030684,2]
[325299489,1714685470524,-1664.39,0.00030684,2]
[325299490,1714685470534,-500.0,0.00030684,2]
[325299491,1714685470547,-500.0,0.00030684,2]
[325299492,1714685470556,-2131.17,0.00030684,2]
[325299493,1714685470566,-500.0,0.00030684,2]
[325299494,1714685470575,-1367.94,0.00030684,2]
[325299495,1714685470585,-868.21,0.00030684,2]
[325299496,1714685470595,-2543.71,0.00030684,2]
[325299497,1714685470604,-695.48,0.00030684,2]
[325299498,1714685470613,-1219.51,0.00030684,2]
[325299499,1714685470624,-1207.89,0.00030684,2]
[325299500,1714685470635,-500.0,0.00030684,2]
[325299501,1714685470646,-500.0,0.00030684,2]
[325299502,1714685470655,-2187.86,0.00030684,2]
[325299503,1714685470666,-500.0,0.00030684,2]
[325299504,1714685470676,-1893.13,0.00030684,2]
[325299505,1714685470685,-517.87746157,0.00030684,2]
[325299506,1714685470694,-500.0,0.00030684,2]
[325299507,1714685470705,-500.0,0.00030684,2]
[325299508,1714685470714,-1405.76,0.00030684,2]
[325299509,1714685470724,-500.0,0.00030684,2]
[325299510,1714685470733,-500.0,0.00030684,2]
[325299511,1714685470743,-500.0,0.00030684,2]
[325299512,1714685470754,-500.0,0.00030684,2]
[325299513,1714685470765,-704.62,0.00030684,2]
[325299514,1714685470775,-1078.18,0.00030684,2]
[325299515,1714685470784,-2066.05,0.00030684,2]
[325299516,1714685470794,-500.0,0.00030684,2]
[325299517,1714685470803,-789.01,0.00030684,2]
[325299518,1714685470812,-185.24576766,0.00030684,2]
[325299519,1714685470822,-500.0,0.00030684,2]
[325299520,1714685470832,-1225.6,0.00030684,2]
[325299521,1714685470842,-507.16,0.00030684,2]
[325299522,1714685470852,-1299.0,0.00030684,2]
[325299523,1714685470862,-500.0,0.00030684,2]
[325299524,1714685470874,-964.54,0.00030684,2]
[325299525,1714685470886,-1080.32,0.00030684,2]
[325299526,1714685470896,-500.0,0.00030684,2]
[325299527,1714685470905,-1609.86,0.00030684,2]
[325299528,1714685470914,-761.86,0.00030684,2]
[325299529,1714685470924,-2226.77,0.00030684,2]
[325299530,1714685470933,-500.0,0.00030684,2]
[325299531,1714685470942,-500.0,0.00030684,2]
[325299532,1714685470952,-618.91,0.00030684,2]
[325299533,1714685470961,-1073.22,0.00030684,2]
[325299534,1714685470970,-1214.18,0.00030684,2]
[325299535,1714685470979,-1740.42,0.00030684,2]
[325299536,1714685470989,-741.32,0.00030684,2]
[325299537,1714685470998,-500.0,0.00030684,2]
[325299538,1714685471008,-1095.74,0.00030684,2]
[325299539,1714685471018,-500.0,0.00030684,2]
[325299540,1714685471028,-500.0,0.00030684,2]
[325299541,1714685471038,-500.0,0.00030684,2]
[325299542,1714685471047,-500.0,0.00030684,2]
[325299543,1714685471057,-500.0,0.00030684,2]
[325299544,1714685471067,-500.0,0.00030684,2]
[325299545,1714685471076,-1165.19,0.00030684,2]
[325299546,1714685471086,-1013.47,0.00030684,2]
[325299547,1714685471095,-983.06,0.00030684,2]
[325299548,1714685471105,-500.0,0.00030684,2]
[325299549,1714685471114,-707.31,0.00030684,2]
[325299550,1714685471124,-500.0,0.00030684,2]
[325299551,1714685471134,-500.0,0.00030684,2]
[325299552,1714685471143,-1039.7,0.00030684,2]
[325299553,1714685471154,-739.42,0.00030684,2]
[325299554,1714685471165,-2147.74,0.00030684,2]
[325299555,1714685471175,-1000.28,0.00030684,2]
[325299556,1714685471186,-1276.99,0.00030684,2]
[325299557,1714685471196,-541.21,0.00030684,2]
[325299558,1714685471205,-289.37120527,0.00030684,2]
[325299559,1714685471215,-500.0,0.00030684,2]
[325299560,1714685471224,-899.34,0.00030684,2]
[325299561,1714685471236,-500.0,0.00030684,2]
[325299562,1714685471247,-1637.55,0.00030684,2]
[325299563,1714685471256,-1948.34,0.00030684,2]
[325299564,1714685471265,-794.19,0.00030684,2]
[325299565,1714685471275,-500.0,0.00030684,2]
[325299566,1714685471285,-500.0,0.00030684,2]
[325299567,1714685471295,-500.0,0.00030684,2]
[325299568,1714685471304,-151.0,0.00030684,7]
[325299569,1714685471313,-500.0,0.00030684,2]
[325299570,1714685471323,-500.0,0.00030684,2]
[325299571,1714685471334,-800.1,0.00030684,2]
[325299572,1714685471345,-1310.86,0.00030684,2]
[325299573,1714685471355,-500.0,0.00030684,2]
[325299574,1714685471364,-1876.8,0.00030684,2]
[325299575,1714685471373,-500.0,0.00030684,2]
[325299576,1714685471382,-500.0,0.00030684,2]